bitfinex/quotes_ETHUSD_20251212
["timestamp","ask_amount","ask_price","bid_price","bid_amount"]
[1765571905609,6.51275904,3070.9,3070.7,0.1124]
[1765571905786,3.25637435,3070.9,3070.8,0.1124]
[1765571908446,6.99705904,3070.9,3070.3,0.002]
[1765571909280,6.99705904,3070.9,3070.3,0.1144]
[1765571910488,6.99705904,3070.9,3070.3,0.002]
[1765571910808,8.50721487,3070.9,3070.3,0.002]
[1765571911010,3.25637435,3070.9,3070.8,0.1124]
[1765571911217,0.516,3071.0,3070.8,0.1124]
[1765571911509,0.516,3071.0,3070.9,0.1124]
[1765571911913,3.25573823,3071.5,3070.9,0.2248]
[1765571912095,3.25573823,3071.5,3070.9,0.1124]
[1765571912293,3.83621352,3071.5,3071.4,0.1124]
[1765571912490,2.141,3071.6,3071.4,0.1124]
[1765571912491,5.39671982,3071.6,3071.4,0.1124]
[1765571912691,2.141,3071.6,3071.5,0.1124]
[1765571912893,1.625,3071.6,3071.5,0.1124]
[1765571913231,1.625,3071.6,3071.5,0.2248]
[1765571914585,1.625,3071.6,3071.5,0.1124]
[1765571915017,1.625,3071.6,3071.5,0.2248]
[1765571918606,1.625,3071.6,3071.5,3.48053823]
[1765571920689,1.625,3071.6,3071.5,0.2248]
[1765571921587,1.625,3071.6,3071.5,0.1124]
[1765571922031,1.625,3071.6,3071.5,0.2248]
[1765571922232,1.625,3071.6,3071.5,0.1124]
[1765571922403,1.625,3071.6,3071.5,0.2248]
[1765571922794,1.625,3071.6,3071.5,3.48053823]
[1765571926106,1.625,3071.6,3071.5,4.06101352]
[1765571926295,1.625,3071.6,3071.5,4.46651752]
[1765571926498,1.625,3071.6,3071.5,15.95417352]
[1765571927433,1.625,3071.6,3071.5,4.46651752]
[1765571927649,1.625,3071.6,3071.5,16.25420652]
[1765571928461,1.625,3071.6,3071.5,4.46651752]
[1765571928751,1.625,3071.6,3071.5,16.56532552]
[1765571928927,1.625,3071.6,3071.5,14.37081052]
[1765571929246,1.625,3071.6,3071.5,13.81961052]
[1765571929449,1.625,3071.6,3071.5,8.38761652]
[1765571929612,1.625,3071.6,3071.5,8.26761652]
[1765571930434,1.625,3071.6,3071.5,8.78361652]
[1765571930748,1.625,3071.6,3071.5,33.89340863]
[1765571931657,1.625,3071.6,3071.5,42.37353463]
[1765571931960,1.625,3071.6,3071.5,39.37841963]
[1765571932174,1.625,3071.6,3071.5,38.32808163]
[1765571932477,1.625,3071.6,3071.5,35.71727263]
[1765571932667,1.625,3071.6,3071.5,36.3726565]
[1765571933574,1.625,3071.6,3071.5,10.32069452]
[1765571933778,1.625,3071.6,3071.5,4.45669452]
[1765571933946,1.625,3071.6,3071.5,3.36021923]
[1765571934281,1.625,3071.6,3071.5,3.94069452]
[1765571934848,1.625,3071.6,3071.5,4.04509452]
[1765571938477,1.625,3071.6,3071.5,3.94069452]
[1765571939992,1.625,3071.6,3071.5,3.94061352]
[1765571940286,1.625,3071.6,3071.5,4.04501352]
[1765571940500,1.625,3071.6,3071.5,28.07772763]
[1765571940700,0.001,3072.4,3072.3,10.38610629]
[1765571940858,0.001,3072.4,3072.3,10.04518129]
[1765571941064,0.001,3072.4,3072.3,8.51995629]
[1765571941360,0.001,3072.4,3072.3,8.65023311]
[1765571941573,0.001,3072.4,3072.3,3.77246611]
[1765571941894,0.001,3072.4,3072.3,7.29612258]
[1765571942466,0.001,3072.4,3072.3,7.79066205]
[1765571942665,0.001,3072.4,3072.3,7.28441858]
[1765571943582,0.001,3072.4,3072.3,9.57076358]
[1765571943901,0.001,3072.4,3072.3,8.20999358]
[1765571944269,0.001,3072.4,3072.3,7.69399358]
[1765571944482,0.001,3072.4,3072.3,4.88714658]
[1765571944688,0.001,3072.4,3072.3,9.10378158]
[1765571945491,0.001,3072.4,3072.3,4.88714658]
[1765571945693,0.001,3072.4,3072.3,8.93349958]
[1765571946611,0.001,3072.4,3072.3,9.26889958]
[1765571946806,0.001,3072.4,3072.3,9.02654058]
[1765571947585,0.001,3072.4,3072.3,9.02470058]
[1765571948802,0.001,3072.4,3072.3,10.97272158]
[1765571949209,0.001,3072.4,3072.3,4.37114658]
[1765571949397,0.001,3072.4,3072.3,7.12281158]
[1765571949815,0.001,3072.4,3072.3,4.88714658]
[1765571950602,0.001,3072.4,3072.3,4.75686976]
[1765571950816,0.001,3072.4,3072.3,6.80440976]
[1765571951717,0.001,3072.4,3072.3,4.75686976]
[1765571951925,0.001,3072.4,3072.3,6.79963376]
[1765571952212,0.001,3072.4,3072.3,4.75686976]
[1765571952377,0.001,3072.4,3072.3,6.79963376]
[1765571952786,0.001,3072.4,3072.3,6.83232376]
[1765571953185,0.001,3072.4,3072.3,6.96259379]
[1765571954007,0.001,3072.4,3072.3,42.35760856]
[1765571954603,0.001,3072.4,3072.3,29.32582956]
[1765571954802,0.001,3072.4,3072.3,29.53886756]
[1765571955599,0.001,3073.1,3072.6,0.405504]
[1765571955804,0.001,3073.1,3073.0,10.28493916]
[1765571956115,0.001,3073.1,3073.0,14.11956349]
[1765571956486,0.001,3073.1,3073.0,14.24981188]
[1765571956692,0.001,3073.1,3073.0,10.43227688]
[1765571957020,0.001,3073.1,3073.0,4.05931988]
[1765571957226,0.4807,3073.1,3073.0,4.44507149]
[1765571959897,0.001,3073.1,3073.0,32.26439249]
[1765571960097,0.001,3073.1,3073.0,25.38575449]
[1765571960798,0.001,3073.1,3073.0,4.85057549]
[1765571960999,0.001,3073.1,3073.0,34.85057549]
[1765571961296,0.001,3073.1,3073.0,30.60348349]
[1765571961501,0.001,3073.1,3073.0,30.37715549]
[1765571961736,0.001,3073.1,3073.0,29.81995549]
[1765571961898,0.001,3073.1,3073.0,33.18530449]
[1765571962100,0.001,3073.1,3073.0,32.80216649]
[1765571963039,0.001,3073.1,3073.0,34.85057549]
[1765571963330,0.001,3074.0,3073.6,0.405504]
[1765571963531,0.001,3074.0,3073.7,0.515]
[1765571963723,0.001,3074.0,3073.9,0.09444716]
[1765571964122,0.4555,3074.0,3073.9,0.09444716]
[1765571964319,0.4555,3074.0,3073.9,3.92811871]
[1765571964525,0.9365,3074.0,3073.9,3.92811871]
[1765571966333,0.4555,3074.0,3073.9,3.92811871]
[1765571967539,0.001,3074.0,3073.9,3.92811871]
[1765571967924,0.001,3074.0,3073.9,19.56728208]
[1765571969016,0.001,3074.0,3073.9,27.89850108]
[1765571969211,0.001,3074.0,3073.9,27.18383108]
[1765571970040,0.001,3074.0,3073.9,33.96986108]
[1765571970347,0.001,3074.0,3073.9,33.41866108]
[1765571970561,0.001,3074.0,3073.9,27.93411508]
[1765571971064,0.9365,3074.0,3073.9,3.92811871]
[1765571971221,0.9365,3074.0,3073.9,4.44311871]
[1765571971414,0.9365,3074.0,3073.9,3.92811871]
[1765571971631,0.9365,3074.0,3073.9,4.44311871]
[1765571974852,0.4555,3074.0,3073.9,4.44311871]
[1765571975225,0.4555,3074.0,3073.9,6.96996171]
[1765571975420,0.001,3074.0,3073.9,7.37546571]
[1765571975844,0.4555,3074.0,3073.9,4.84862271]
[1765571976208,0.9365,3074.0,3073.9,4.44311871]
[1765571976486,0.4555,3074.0,3073.9,4.44311871]
[1765571976707,0.001,3074.0,3073.9,4.44311871]
[1765571977072,0.9365,3074.0,3073.9,4.44311871]
[1765571977276,0.4555,3074.0,3073.9,4.44311871]
[1765571980385,0.4555,3074.0,3073.9,3.92811871]
[1765571980578,0.9365,3074.0,3073.9,4.44311871]
[1765571980977,0.4555,3074.0,3073.9,4.44311871]
[1765571981881,0.001,3074.0,3073.9,4.44311871]
[1765571983317,0.4555,3074.0,3073.9,4.44311871]
[1765571984320,0.001,3074.0,3073.9,4.44311871]
[1765571984805,0.4555,3074.0,3073.9,4.44311871]
[1765571987738,0.9365,3074.0,3073.9,0.67492245]
[1765571987939,0.9365,3074.0,3073.4,6.38]
[1765571988097,0.9365,3074.0,3073.2,0.481]
[1765571988098,0.6485,3073.5,3073.2,0.481]
[1765571988296,0.194,3073.5,3073.2,0.58047529]
[1765571988498,0.4545,3073.3,3073.2,0.58047529]
[1765571988897,0.9355,3073.3,3073.2,0.58047529]
[1765571989596,0.9355,3073.3,3073.2,3.83441255]
[1765571990027,0.9355,3073.3,3073.2,0.58047529]
[1765571990227,0.9355,3073.3,3073.1,3.92896357]
[1765571990398,0.194,3073.5,3073.1,0.09444716]
[1765571990598,0.4655,3073.2,3073.0,0.515]
[1765571990933,0.4723,3073.4,3073.0,4.34962345]
[1765571991232,0.4655,3073.1,3073.0,4.34962345]
[1765571992118,0.194,3073.5,3073.0,7.60377249]
[1765571992310,0.4723,3073.4,3073.1,0.09444716]
[1765571992733,0.4655,3073.2,3073.1,0.09444716]
[1765571993234,0.9378,3073.2,3073.0,4.34962345]
[1765571993430,0.4655,3073.1,3073.0,0.58047529]
[1765571993729,0.9378,3073.1,3073.0,0.515]
[1765571993908,0.9378,3073.1,3072.8,0.58047529]
[1765571994230,0.6527,3072.9,3072.8,0.58047529]
[1765571994402,0.6527,3072.9,3072.8,3.83483613]
[1765571994605,1.125,3072.9,3072.8,3.83483613]
[1765571994818,0.4655,3072.9,3072.8,4.3410796]
[1765571995027,0.4723,3073.2,3072.8,3.92928329]
[1765571995428,0.4655,3072.9,3072.8,3.92928329]
[1765571996037,0.6527,3072.9,3072.8,3.92928329]
[1765571996535,0.4723,3073.1,3072.8,7.18364413]
[1765571996735,0.6663,3073.5,3073.0,0.09444716]
[1765571997144,0.4655,3073.1,3072.8,0.67492245]
[1765571997444,0.4723,3073.4,3073.0,0.515]
[1765571997610,0.4723,3073.3,3073.0,0.515]
[1765571997810,0.4655,3073.1,3072.8,3.92926025]
[1765571998010,0.4655,3072.9,3072.8,3.92926025]
[1765571998323,0.4655,3072.9,3072.8,4.44426025]
[1765571999046,0.4723,3073.2,3072.8,7.69862109]
[1765571999545,0.4723,3073.4,3073.0,0.09444716]
[1765571999842,0.4723,3073.2,3073.0,0.09444716]
[1765572000142,0.4723,3073.2,3073.1,0.58047529]
[1765572000315,0.4723,3073.7,3073.1,0.58047529]
[1765572000634,0.4723,3073.7,3073.2,0.60944716]
[1765572001041,0.4655,3073.3,3073.2,0.60944716]
[1765572001611,0.4723,3073.7,3073.2,0.60944716]
[1765572001810,0.4723,3073.7,3073.4,0.09444716]
[1765572002011,0.4723,3073.7,3073.4,3.34809845]
[1765572002243,0.4655,3073.5,3073.4,3.92857374]
[1765572002654,0.9378,3073.5,3073.4,0.67492245]
[1765572003853,0.9378,3073.5,3073.4,0.58047529]
[1765572004236,0.9378,3073.5,3073.4,1.09547529]
[1765572004553,0.9378,3073.5,3073.4,0.58047529]
[1765572004754,0.9378,3073.5,3072.9,3.25423292]
[1765572005058,0.4723,3073.4,3073.0,0.515]
[1765572005558,0.4723,3073.4,3073.2,0.58047529]
[1765572006125,0.4655,3073.3,3073.1,0.58047529]
[1765572006326,0.4655,3073.2,3073.1,3.25404314]
[1765572006753,0.4655,3073.2,3073.1,0.58047529]
[1765572007350,0.4655,3073.2,3073.1,3.83451843]
[1765572008160,0.9378,3073.2,3073.1,3.83451843]
[1765572008356,0.001,3074.0,3073.2,0.58047529]
[1765572008560,0.4723,3073.8,3073.2,0.67492245]
[1765572009259,0.001,3074.0,3073.7,0.1401]
[1765572009556,0.001,3074.0,3073.2,0.67492245]
[1765572009557,0.4733,3074.0,3073.2,0.67492245]
[1765572009729,0.4655,3073.5,3073.3,0.515]
[1765572009926,0.4733,3074.0,3073.4,0.09444716]
[1765572010156,0.4733,3074.0,3073.4,0.23454716]
[1765572010326,0.4733,3074.0,3073.5,3.25361965]
[1765572010532,0.4733,3074.0,3073.6,0.58047529]
[1765572010962,0.4655,3073.7,3073.6,0.58047529]
[1765572012445,0.4655,3073.7,3073.6,3.83398908]
[1765572012861,0.4723,3073.9,3073.6,4.06853624]
[1765572013169,0.001,3074.0,3073.6,4.06853624]
[1765572013170,0.001,3074.0,3073.8,0.23454716]
[1765572013327,0.001,3074.0,3073.9,0.1401]
[1765572013956,0.001,3074.0,3073.9,0.72057529]
[1765572014126,0.001,3074.0,3073.9,8.43613729]
[1765572014341,0.001,3074.0,3073.9,8.98174129]
[1765572014542,0.001,3074.0,3073.9,12.70723755]
[1765572015142,0.001,3074.0,3073.9,13.16556255]
[1765572015341,0.001,3074.0,3073.9,4.85157555]
[1765572015550,0.001,3074.0,3073.9,5.36657555]
[1765572016251,0.001,3074.0,3073.9,4.85157555]
[1765572016557,0.4665,3074.0,3073.9,5.22647555]
[1765572016930,0.4665,3074.0,3073.9,1.56777529]
[1765572017130,0.4665,3074.0,3073.9,4.34867155]
[1765572017352,0.001,3074.0,3073.9,4.48877155]
[1765572019363,0.001,3074.0,3073.9,18.24405555]
[1765572019551,0.001,3074.0,3073.9,13.91381755]
[1765572019863,0.001,3074.0,3073.9,11.21082455]
[1765572020030,0.001,3074.0,3073.9,9.06386484]
[1765572020233,0.001,3074.0,3073.9,8.92376484]
[1765572020434,0.001,3074.0,3073.9,8.73232884]
[1765572021265,0.001,3074.0,3073.9,5.02449384]
[1765572022869,0.001,3074.0,3073.9,7.54374284]
[1765572023276,0.001,3074.0,3073.9,5.02449384]
[1765572023937,0.001,3074.0,3073.9,7.81985984]
[1765572024244,0.001,3074.0,3073.9,7.59459584]
[1765572024968,0.001,3074.0,3073.9,7.73469584]
[1765572025480,0.001,3074.0,3073.9,12.37604584]
[1765572026575,0.001,3074.0,3073.9,12.64860484]
[1765572026777,0.001,3074.0,3073.9,18.88850484]
[1765572026993,0.001,3074.0,3073.9,19.39358478]
[1765572027144,0.001,3075.0,3074.7,0.58047529]
[1765572027347,0.001,3075.0,3074.7,4.22427229]
[1765572027659,0.001,3075.0,3074.7,1.64107929]
[1765572027861,0.9608,3074.8,3074.7,0.71066264]
[1765572028060,0.9608,3074.8,3074.7,0.58047529]
[1765572028361,0.9608,3074.8,3074.3,0.58047529]
[1765572028543,0.4609,3074.4,3074.3,0.58047529]
[1765572028873,0.4609,3074.4,3074.1,0.9608]
[1765572029060,3.71379611,3074.2,3073.2,0.09444716]
[1765572029262,0.6458,3073.5,3073.2,0.09444716]
[1765572029461,0.1849,3073.5,3073.3,0.4989]
[1765572029661,0.4989,3073.4,3072.8,0.515]
[1765572029976,0.4989,3073.4,3073.0,0.58047529]
[1765572030176,0.4989,3073.4,3072.8,4.34981309]
[1765572030473,0.4989,3073.4,3072.8,4.44426025]
[1765572030978,0.4989,3073.4,3072.8,7.69862109]
[1765572031373,0.1849,3073.5,3073.0,0.09444716]
[1765572031881,0.4989,3073.4,3073.0,0.09444716]
[1765572032181,0.4609,3073.1,3072.8,4.44426025]
[1765572032478,0.4989,3073.4,3072.9,0.405504]
[1765572033381,0.4989,3073.4,3073.0,0.58047529]
[1765572034349,0.4989,3073.4,3073.0,0.67492245]
[1765572034550,0.1849,3073.5,3073.0,0.67492245]
[1765572034979,0.6838,3073.5,3073.0,0.67492245]
[1765572035579,0.1849,3073.8,3073.4,0.1401]
[1765572035757,0.4609,3073.5,3073.3,0.515]
[1765572035963,0.4609,3073.4,3073.3,0.515]
[1765572037185,0.4989,3073.7,3073.3,0.515]
[1765572037748,0.4989,3073.7,3073.4,0.58047529]
[1765572038382,0.1849,3073.8,3073.4,0.67492245]
[1765572038581,0.6838,3073.8,3073.4,0.67492245]
[1765572038783,0.6838,3073.8,3073.4,0.09444716]
[1765572038954,0.4609,3073.5,3073.4,0.09444716]
[1765572039354,0.4609,3073.5,3073.4,0.67492245]
[1765572039852,0.4609,3073.5,3073.3,0.515]
[1765572040057,0.9598,3073.4,3073.1,0.4989]
[1765572040253,0.4609,3073.2,3073.1,0.58047529]
[1765572040664,0.9598,3073.2,3073.1,0.58047529]
[1765572040866,0.9598,3073.2,3073.1,3.83451843]
[1765572041487,0.9598,3073.2,3073.1,0.58047529]
[1765572046500,0.4609,3073.2,3073.1,0.58047529]
[1765572046686,0.4609,3073.2,3073.1,3.83451843]
[1765572047079,0.4989,3073.4,3073.2,0.58047529]
[1765572047277,0.1849,3073.8,3073.2,0.58047529]
[1765572047469,0.4609,3073.3,3073.2,0.58047529]
[1765572048467,0.4989,3073.7,3073.3,0.58047529]
[1765572049402,0.4609,3073.4,3073.3,0.58047529]
[1765572049699,0.4609,3073.4,3073.2,0.58047529]
[1765572049999,0.4609,3073.4,3073.2,3.83436764]
[1765572050983,0.4989,3073.6,3073.2,3.83436764]
[1765572052001,0.4989,3073.6,3073.3,0.58047529]
[1765572052715,0.4569,3073.3,3073.2,0.58047529]
[1765572053611,0.4569,3073.3,3073.0,1.18992245]
[1765572053814,0.4569,3073.2,3073.0,0.515]
[1765572053997,0.4569,3073.1,3073.0,1.09547529]
[1765572054200,0.4569,3073.1,3073.0,4.34962433]
[1765572054526,0.4569,3073.1,3073.0,1.09547529]
[1765572054819,0.4569,3073.1,3073.0,4.34962433]
[1765572055705,0.4625,3073.4,3073.0,4.48972433]
[1765572055907,0.0326,3073.7,3073.3,0.1401]
[1765572056107,0.4951,3073.7,3073.0,7.69822053]
[1765572059477,0.4951,3073.7,3073.0,4.44407149]
[1765572059674,0.4951,3073.7,3073.0,7.69822053]
[1765572059886,0.4951,3073.7,3073.2,0.09444716]
[1765572060108,0.0326,3073.7,3073.2,0.09444716]
[1765572060296,0.4951,3073.7,3073.2,0.09444716]
[1765572060502,0.4569,3073.3,3073.2,0.09444716]
[1765572061114,0.4569,3073.3,3073.2,1.18992245]
[1765572061290,0.4569,3073.3,3073.2,4.44385971]
[1765572061684,0.4625,3073.5,3073.2,4.58395971]
[1765572062085,0.4625,3073.5,3073.2,1.18992245]
[1765572062284,0.4625,3073.5,3073.2,4.44383713]
[1765572062711,0.4625,3073.5,3073.2,1.18992245]
[1765572063010,0.4625,3073.5,3073.2,4.44384967]
[1765572063416,0.4625,3073.5,3073.2,0.67492245]
[1765572063709,0.4625,3073.5,3073.2,4.44383825]
[1765572064417,0.4625,3073.5,3073.2,1.18992245]
[1765572064916,0.4625,3073.5,3073.2,4.44382987]
[1765572065297,0.4625,3073.5,3073.2,1.18992245]
[1765572066013,0.4569,3073.3,3073.2,1.18992245]
[1765572066190,0.4625,3073.5,3073.2,4.44385971]
[1765572069022,0.1849,3073.8,3073.4,0.1401]
[1765572069520,0.4625,3074.4,3073.7,0.81502245]
[1765572069702,0.4625,3074.4,3073.9,0.23454716]
[1765572070093,0.4625,3074.4,3073.9,0.09444716]
[1765572070293,0.4569,3074.0,3073.9,0.09444716]
[1765572070524,0.4569,3074.0,3073.3,0.58047529]
[1765572070729,0.4569,3074.0,3073.2,6.38]
[1765572070730,1.1109,3073.9,3073.7,0.58047529]
[1765572071096,1.1109,3073.9,3073.8,0.58047529]
[1765572071097,0.4569,3073.9,3073.8,0.58047529]
[1765572071623,0.0326,3074.4,3073.9,3.83364545]
[1765572071829,0.4625,3074.3,3073.9,3.83364545]
[1765572072196,0.4569,3074.0,3073.9,3.83364545]
[1765572072391,0.0326,3074.4,3073.9,3.83364545]
[1765572072722,0.0326,3074.4,3074.3,0.1401]
[1765572073290,0.0326,3074.4,3074.2,0.60944716]
[1765572073291,0.4895,3074.4,3074.2,0.60944716]
[1765572073497,0.4895,3074.4,3074.2,0.515]
[1765572073498,0.0326,3074.4,3074.2,0.515]
[1765572073692,0.4951,3074.4,3074.2,0.515]
[1765572073899,0.0326,3074.4,3074.2,0.515]
[1765572074125,0.4569,3074.3,3073.9,1.04297529]
[1765572074328,0.4569,3074.0,3073.9,4.34867155]
[1765572074695,0.4569,3074.0,3073.9,1.09547529]
[1765572075015,0.9194,3074.0,3073.9,1.09547529]
[1765572078631,0.4569,3074.0,3073.9,1.09547529]
[1765572078928,0.001,3074.8,3074.1,0.405504]
[1765572079234,0.4887,3074.8,3074.1,0.405504]
[1765572079399,3.74098756,3074.8,3074.1,0.405504]
[1765572079724,0.4908,3074.2,3074.0,0.58047529]
[1765572080032,3.74098756,3074.8,3074.1,0.515]
[1765572080033,0.4877,3074.7,3074.1,0.515]
[1765572080837,3.74006677,3074.7,3074.1,3.76798326]
[1765572081010,3.74006677,3074.7,3074.1,0.515]
[1765572081200,0.4872,3074.6,3074.1,0.515]
[1765572081646,0.483,3074.2,3074.1,0.515]
[1765572083324,0.4872,3074.4,3074.1,0.515]
[1765572083524,0.4872,3074.4,3074.2,0.58047529]
[1765572083929,0.4872,3074.6,3074.2,0.58047529]
[1765572084111,0.4872,3074.6,3074.1,0.515]
[1765572084504,0.4872,3074.6,3074.2,0.58047529]
[1765572084804,0.4872,3074.6,3074.1,0.515]
[1765572084805,0.483,3074.2,3074.1,0.515]
[1765572085005,0.483,3074.2,3074.0,0.58047529]
[1765572085201,0.483,3074.1,3074.0,0.58047529]
[1765572085406,3.25236351,3074.7,3074.0,1.09547529]
[1765572085621,0.4872,3074.4,3074.0,1.09547529]
[1765572086538,0.4872,3074.4,3074.0,4.34855922]
[1765572086919,0.4872,3074.4,3074.0,7.60164965]
[1765572087119,0.001,3074.8,3074.4,3.25266718]
[1765572087623,0.483,3074.5,3074.2,0.58047529]
[1765572087819,0.483,3074.3,3074.0,0.58047529]
[1765572088051,0.4872,3074.7,3074.1,0.515]
[1765572088219,0.4872,3074.6,3074.1,0.515]
[1765572088907,0.001,3074.8,3074.5,0.1401]
[1765572089112,0.001,3074.8,3074.5,6.33253081]
[1765572089321,0.001,3074.8,3074.4,0.58047529]
[1765572089322,0.483,3074.6,3074.4,0.58047529]
[1765572090242,0.483,3074.6,3074.3,0.58047529]
[1765572090534,0.483,3074.4,3074.3,0.58047529]
[1765572090909,0.483,3074.4,3074.1,4.44288793]
[1765572091129,0.483,3074.4,3074.2,0.58047529]
[1765572091330,0.483,3074.4,3074.1,4.3484159]
[1765572091532,0.4872,3074.3,3074.2,0.515]
[1765572091814,0.9702,3074.3,3074.2,0.515]
[1765572093237,0.483,3074.3,3074.2,0.515]
[1765572093626,0.483,3074.3,3074.2,1.09547529]
[1765572095039,0.9702,3074.3,3074.2,0.58047529]
[1765572095852,5.16025477,3074.3,3073.6,0.97671352]
[1765572096020,0.6786,3073.7,3073.6,0.97671352]
[1765572096539,1.1658,3073.7,3073.0,3.25412523]
[1765572096839,1.1658,3073.7,3073.2,0.58047529]
[1765572096840,0.4872,3073.6,3073.2,0.58047529]
[1765572097144,0.4872,3073.6,3073.3,0.58047529]
[1765572097322,0.483,3073.4,3073.2,0.58047529]
[1765572097518,0.483,3073.3,3073.2,0.58047529]
[1765572097723,0.483,3073.3,3072.9,6.70743081]
[1765572098036,0.483,3073.3,3073.1,0.58047529]
[1765572098533,0.483,3073.3,3073.0,3.83457796]
[1765572098737,0.483,3073.3,3073.2,0.58047529]
[1765572100241,0.4872,3073.5,3073.3,0.58047529]
[1765572100451,0.6828,3073.7,3073.3,0.58047529]
[1765572100650,0.4872,3073.6,3073.3,0.58047529]
[1765572100814,1.0022,3074.0,3073.6,0.1401]
[1765572101265,0.4872,3073.9,3073.6,0.1401]
[1765572101417,0.6828,3073.9,3073.3,0.81502245]
[1765572102118,0.4872,3073.8,3073.3,0.67492245]
[1765572102342,3.7405286,3073.8,3073.3,0.58047529]
[1765572102751,0.4872,3073.7,3073.4,0.58047529]
[1765572103029,0.4872,3073.7,3073.2,0.58047529]
[1765572103439,0.4872,3073.7,3073.3,0.58047529]
[1765572103833,0.4872,3073.7,3073.2,0.58047529]
[1765572104036,0.4872,3073.7,3073.3,3.83426877]
[1765572105653,3.44881968,3073.9,3073.3,3.83426877]
[1765572105855,3.93601968,3073.9,3073.3,3.83426877]
[1765572106469,0.6828,3073.9,3073.3,3.83426877]
[1765572106763,0.4872,3073.8,3073.3,3.83426877]
[1765572107334,0.4872,3073.8,3073.3,0.58047529]
[1765572107767,0.4872,3073.8,3073.3,3.25379131]
[1765572108971,0.4872,3073.8,3073.4,0.58047529]
[1765572109344,0.1956,3073.9,3073.4,0.67492245]
[1765572109570,0.6828,3073.9,3073.4,0.67492245]
[1765572109871,0.4872,3073.8,3073.4,0.67492245]
[1765572110281,0.4872,3073.8,3073.2,3.92881493]
[1765572110585,0.4974,3073.5,3073.2,0.67492245]
[1765572110782,0.4974,3073.5,3073.2,3.92885247]
[1765572111296,0.5198,3073.8,3073.4,0.58047529]
[1765572112080,0.0326,3073.8,3073.7,0.1401]
[1765572112238,0.0326,3073.8,3073.7,7.58133229]
[1765572112546,0.0326,3073.8,3073.7,7.72143229]
[1765572113262,0.0326,3073.8,3073.7,7.41967529]
[1765572113440,0.0326,3073.8,3073.7,5.22374129]
[1765572113640,0.0326,3073.8,3073.7,4.55585729]
[1765572113942,0.0326,3073.8,3073.7,7.80926523]
[1765572114474,0.0326,3073.8,3073.7,16.93667623]
[1765572114774,0.0326,3073.8,3073.7,17.38887623]
[1765572115347,0.0326,3073.8,3073.7,26.22285623]
[1765572115565,0.0326,3073.8,3073.7,20.32871023]
[1765572116287,0.0326,3073.8,3073.7,30.31982623]
[1765572116464,0.0326,3073.8,3073.7,25.40948323]
[1765572117265,0.0326,3073.8,3073.7,41.86678723]
[1765572117659,0.0326,3073.8,3073.7,36.56378623]
[1765572118357,0.0326,3073.8,3073.7,41.18329823]
[1765572118684,0.0326,3073.8,3073.7,41.18929823]
[1765572118885,0.0326,3073.8,3073.7,39.72832023]
[1765572119477,0.0326,3073.8,3073.7,41.86678723]
[1765572119884,0.0326,3073.8,3073.7,48.05612369]
[1765572121683,0.0326,3073.8,3073.7,18.05612369]
[1765572121877,0.0326,3073.8,3073.7,48.05612369]
[1765572122684,0.0326,3073.8,3073.7,18.05612369]
[1765572122992,0.0326,3073.8,3073.7,48.05612369]
[1765572123788,0.001,3074.8,3074.7,0.49995116]
[1765572123986,0.001,3074.8,3074.7,28.39725491]
[1765572124300,0.001,3074.8,3074.7,29.04359838]
[1765572124755,0.001,3074.8,3074.7,41.8235562]
[1765572124957,0.001,3074.8,3074.7,41.95370924]
[1765572125170,0.001,3074.8,3074.7,29.30872624]
[1765572125875,0.001,3074.8,3074.7,29.15984878]
[1765572126080,0.4984,3074.8,3074.7,4.46292931]
[1765572126284,0.001,3074.8,3074.7,6.99508627]
[1765572126557,0.001,3074.8,3074.7,4.40740098]
[1765572126779,0.001,3074.8,3074.7,4.58237227]
[1765572126963,0.001,3074.8,3074.7,9.34919627]
[1765572127176,0.001,3074.8,3074.7,9.89480027]
[1765572127575,0.001,3074.8,3074.7,25.86368627]
[1765572127777,0.001,3074.8,3074.7,23.32695227]
[1765572128693,0.001,3074.8,3074.7,35.12797627]
[1765572129580,0.001,3074.8,3074.7,5.12797627]
[1765572129781,0.001,3074.8,3074.7,35.12797627]
[1765572130587,0.001,3074.8,3074.7,5.12797627]
[1765572130765,0.001,3074.8,3074.7,35.12797627]
[1765572134111,0.4522,3076.5,3075.5,30.405504]
[1765572134268,0.4522,3076.5,3075.5,39.82329843]
[1765572134770,0.4522,3076.5,3075.5,39.95341167]
[1765572134978,0.001,3076.1,3075.5,39.95341167]
[1765572135371,0.001,3076.1,3075.5,46.33341167]
[1765572135884,0.001,3076.1,3075.5,49.58491549]
[1765572139078,0.001,3076.1,3075.5,49.44481549]
[1765572139275,0.1958,3075.9,3075.5,12.93706335]
[1765572139512,0.1958,3075.9,3075.5,13.45206335]
[1765572139882,0.1958,3075.9,3075.5,17.87870535]
[1765572140087,0.1958,3075.9,3075.5,18.28420935]
[1765572140285,0.001,3075.9,3075.5,18.42430935]
[1765572140497,0.001,3075.9,3075.5,18.28420935]
[1765572141015,0.001,3075.9,3075.5,41.54279635]
[1765572141381,0.001,3075.9,3075.5,40.08608135]
[1765572141915,0.001,3075.9,3075.5,41.54279635]
[1765572143977,0.001,3075.9,3075.5,35.16279635]
[1765572147488,0.4625,3075.6,3075.5,20.57879435]
[1765572147696,0.4625,3075.6,3075.5,15.97557235]
[1765572148019,0.001,3075.6,3075.5,30.24501535]
[1765572148319,0.4625,3075.6,3075.5,9.06986535]
[1765572148477,0.4625,3075.6,3075.5,9.20996535]
[1765572148478,0.001,3075.6,3075.5,9.20996535]
[1765572148835,0.4625,3075.6,3075.5,7.93027135]
[1765572149010,0.4625,3075.6,3075.5,4.88159635]
[1765572149316,0.001,3075.6,3075.5,14.11543435]
[1765572150020,0.001,3075.6,3075.5,33.02430635]
[1765572150323,0.001,3075.6,3075.5,32.09192835]